[Event "Titled Tuesday Blitz March 14 Late 2023"]
[White "Osmak, Yuliia"]
[Black "Mirzoev, Azer"]
[WhiteFideId "14101602"]
[BlackFideId "13400304"]
[WhiteElo "2271"]
[BlackElo "2525"]
[Result "0-1"]
[Round "06"]
[TimeControl "180+2"]
[Date "2023.03.14"]
[WhiteClock "0:00:03"]
[BlackClock "0:00:08"]

1. d4 {[%clk 0:03:00]}  d5 {[%clk 0:02:59]} 2. Bf4 {[%clk 0:02:59]}  c5 {[%clk 0:02:56]} 3. e3 {[%clk 0:02:59]}  Nc6 {[%clk 0:02:56]} 4. Nf3 {[%clk 0:02:55]}  Qb6 {[%clk 0:02:50]} 5. dxc5 {[%clk 0:02:36]}  Qxb2 {[%clk 0:02:46]} 6. Nbd2 {[%clk 0:02:35]}  Nf6 {[%clk 0:02:39]} 7. c4 {[%clk 0:02:18]}  dxc4 {[%clk 0:02:22]} 8. Bxc4 {[%clk 0:02:17]}  e6 {[%clk 0:02:21]} 9. Nb3 {[%clk 0:01:55]}  Qc3+ {[%clk 0:02:10]} 10. Nfd2 {[%clk 0:01:54]}  Be7 {[%clk 0:01:40]} 11. O-O {[%clk 0:01:52]}  O-O {[%clk 0:01:33]} 12. a3 {[%clk 0:01:29]}  Nd5 {[%clk 0:01:26]} 13. Rc1 {[%clk 0:01:02]}  Qb2 {[%clk 0:01:14]} 14. Bg3 {[%clk 0:00:36]}  Rd8 {[%clk 0:01:08]} 15. Qf3 {[%clk 0:00:21]}  Qxa3 {[%clk 0:00:51]} 16. Ne4 {[%clk 0:00:20]}  a5 {[%clk 0:00:36]} 17. Nd6 {[%clk 0:00:19]}  Nf6 {[%clk 0:00:34]} 18. Nd4 {[%clk 0:00:14]}  Nxd4 {[%clk 0:00:32]} 19. exd4 {[%clk 0:00:15]}  Qxf3 {[%clk 0:00:31]} 20. gxf3 {[%clk 0:00:16]}  Bxd6 {[%clk 0:00:23]} 21. Bxd6 {[%clk 0:00:15]}  Bd7 {[%clk 0:00:22]} 22. Ra1 {[%clk 0:00:10]}  Bc6 {[%clk 0:00:22]} 23. Be2 {[%clk 0:00:06]}  a4 {[%clk 0:00:22]} 24. Rfb1 {[%clk 0:00:05]}  Nd5 {[%clk 0:00:21]} 25. Rb2 {[%clk 0:00:04]}  h6 {[%clk 0:00:21]} 26. Kf1 {[%clk 0:00:04]}  Nc3 {[%clk 0:00:19]} 27. f4 {[%clk 0:00:04]}  Nxe2 {[%clk 0:00:19]} 28. Kxe2 {[%clk 0:00:05]}  Ra6 {[%clk 0:00:18]} 29. Ke3 {[%clk 0:00:05]}  Rda8 {[%clk 0:00:18]} 30. Rb6 {[%clk 0:00:05]}  Rxb6 {[%clk 0:00:18]} 31. cxb6 {[%clk 0:00:06]}  Ra5 {[%clk 0:00:18]} 32. Bc5 {[%clk 0:00:06]}  Rb5 {[%clk 0:00:18]} 33. Ra3 {[%clk 0:00:06]}  Rb1 {[%clk 0:00:17]} 34. h4 {[%clk 0:00:06]}  Kh7 {[%clk 0:00:17]} 35. f5 {[%clk 0:00:06]}  exf5 {[%clk 0:00:16]} 36. Kf4 {[%clk 0:00:06]}  Kg6 {[%clk 0:00:16]} 37. Ke5 {[%clk 0:00:06]}  Re1+ {[%clk 0:00:15]} 38. Kd6 {[%clk 0:00:06]}  Rd1 {[%clk 0:00:14]} 39. Rg3+ {[%clk 0:00:03]}  Kh7 {[%clk 0:00:13]} 40. h5 {[%clk 0:00:04]}  f4 {[%clk 0:00:13]} 41. Rg4 {[%clk 0:00:03]}  f3 {[%clk 0:00:12]} 42. Rf4 {[%clk 0:00:03]}  f6 {[%clk 0:00:12]} 43. Kc7 {[%clk 0:00:02]}  Rd3 {[%clk 0:00:11]} 44. Rg4 {[%clk 0:00:02]}  Kg8 {[%clk 0:00:10]} 45. Rg1 {[%clk 0:00:02]}  Kf7 {[%clk 0:00:09]} 46. Re1 {[%clk 0:00:02]}  a3 {[%clk 0:00:08]} 47. Re7+ {[%clk 0:00:03]}  Kg8 {[%clk 0:00:08]} 48. Re8+ {[%clk 0:00:03]}  Bxe8 {[%clk 0:00:08]} 0-1


[Site "https://www.chess.com"]

[Event "Titled Tuesday Blitz March 14 Late 2023"]
[White "Mirimanian, Hayk"]
[Black "Piesik, Piotr"]
[WhiteFideId "4700180"]
[BlackFideId "1136194"]
[WhiteElo "2280"]
[BlackElo "2311"]
[Result "1-0"]
[Round "06"]
[TimeControl "180+2"]
[Date "2023.03.14"]
[WhiteClock "0:00:18"]
[BlackClock "0:00:18"]

1. e4 {[%clk 0:03:00]}  g6 {[%clk 0:03:00]} 2. d4 {[%clk 0:02:58]}  Bg7 {[%clk 0:03:00]} 3. Nc3 {[%clk 0:02:56]}  c6 {[%clk 0:03:00]} 4. Nf3 {[%clk 0:02:54]}  d6 {[%clk 0:03:00]} 5. Be2 {[%clk 0:02:52]}  Nf6 {[%clk 0:03:00]} 6. O-O {[%clk 0:02:48]}  O-O {[%clk 0:03:00]} 7. Re1 {[%clk 0:02:46]}  Nbd7 {[%clk 0:03:00]} 8. e5 {[%clk 0:02:36]}  Ne8 {[%clk 0:03:00]} 9. Bf4 {[%clk 0:02:33]}  dxe5 {[%clk 0:02:59]} 10. dxe5 {[%clk 0:02:29]}  Nc7 {[%clk 0:02:59]} 11. Qc1 {[%clk 0:02:22]}  Nd5 {[%clk 0:02:46]} 12. Nxd5 {[%clk 0:01:59]}  cxd5 {[%clk 0:02:47]} 13. Bh6 {[%clk 0:01:56]}  Nc5 {[%clk 0:02:42]} 14. Qg5 {[%clk 0:01:33]}  Bf5 {[%clk 0:02:21]} 15. Qh4 {[%clk 0:01:14]}  Ne6 {[%clk 0:02:10]} 16. c4 {[%clk 0:01:06]}  Be4 {[%clk 0:02:02]} 17. cxd5 {[%clk 0:01:01]}  Qxd5 {[%clk 0:02:03]} 18. Rad1 {[%clk 0:00:59]}  Qc6 {[%clk 0:01:56]} 19. Rc1 {[%clk 0:00:55]}  Bxf3 {[%clk 0:01:41]} 20. Rxc6 {[%clk 0:00:54]}  Bxc6 {[%clk 0:01:42]} 21. Bxg7 {[%clk 0:00:53]}  Kxg7 {[%clk 0:01:42]} 22. Qxe7 {[%clk 0:00:54]}  Rad8 {[%clk 0:01:37]} 23. h4 {[%clk 0:00:51]}  h5 {[%clk 0:01:33]} 24. Bf3 {[%clk 0:00:37]}  Bxf3 {[%clk 0:01:23]} 25. Qf6+ {[%clk 0:00:38]}  Kg8 {[%clk 0:01:23]} 26. Qxf3 {[%clk 0:00:38]}  Rd7 {[%clk 0:01:21]} 27. Rd1 {[%clk 0:00:38]}  Rc7 {[%clk 0:01:19]} 28. Rd6 {[%clk 0:00:36]}  Rfc8 {[%clk 0:01:15]} 29. g4 {[%clk 0:00:36]}  hxg4 {[%clk 0:01:15]} 30. Qxg4 {[%clk 0:00:36]}  Rc4 {[%clk 0:01:14]} 31. Qg3 {[%clk 0:00:34]}  Nf4 {[%clk 0:01:05]} 32. Kh2 {[%clk 0:00:32]}  Nh5 {[%clk 0:00:57]} 33. Qg5 {[%clk 0:00:32]}  Ng7 {[%clk 0:00:51]} 34. Rd8+ {[%clk 0:00:30]}  Rxd8 {[%clk 0:00:51]} 35. Qxd8+ {[%clk 0:00:31]}  Kh7 {[%clk 0:00:52]} 36. Qd5 {[%clk 0:00:31]}  Rxh4+ {[%clk 0:00:51]} 37. Kg2 {[%clk 0:00:30]}  Ne6 {[%clk 0:00:37]} 38. Qxb7 {[%clk 0:00:30]}  Kg7 {[%clk 0:00:37]} 39. Qxa7 {[%clk 0:00:28]}  Rg4+ {[%clk 0:00:36]} 40. Kf3 {[%clk 0:00:28]}  Rf4+ {[%clk 0:00:35]} 41. Ke3 {[%clk 0:00:28]}  Rf5 {[%clk 0:00:34]} 42. Qb8 {[%clk 0:00:28]}  Ng5 {[%clk 0:00:27]} 43. a4 {[%clk 0:00:21]}  Rf3+ {[%clk 0:00:27]} 44. Ke2 {[%clk 0:00:22]}  Rh3 {[%clk 0:00:25]} 45. a5 {[%clk 0:00:22]}  Ne6 {[%clk 0:00:25]} 46. a6 {[%clk 0:00:22]}  Nd4+ {[%clk 0:00:25]} 47. Kf1 {[%clk 0:00:20]}  Rh1+ {[%clk 0:00:20]} 48. Kg2 {[%clk 0:00:20]}  Ra1 {[%clk 0:00:20]} 49. Qb6 {[%clk 0:00:20]}  Ne2 {[%clk 0:00:18]} 50. a7 {[%clk 0:00:18]}  Nf4+ {[%clk 0:00:18]} 51. Kf3 {[%clk 0:00:19]}  Nd5 {[%clk 0:00:18]} 52. Qb7 {[%clk 0:00:18]} 1-0


[Site "https://www.chess.com"]

[Event "Titled Tuesday Blitz March 14 Late 2023"]
[White "Volkov, Maksim"]
[Black "Filgueiras, Nathan Felipe"]
[WhiteFideId "54123070"]
[BlackFideId "2188562"]
[WhiteElo "2312"]
[BlackElo "2241"]
[Result "0-1"]
[Round "06"]
[TimeControl "180+2"]
[Date "2023.03.14"]
[WhiteClock "0:01:52"]
[BlackClock "0:02:24"]

1. e4 {[%clk 0:02:52]}  c5 {[%clk 0:02:59]} 2. Nf3 {[%clk 0:02:52]}  Nc6 {[%clk 0:03:00]} 3. d4 {[%clk 0:02:52]}  cxd4 {[%clk 0:03:00]} 4. Nxd4 {[%clk 0:02:52]}  e5 {[%clk 0:03:00]} 5. Nb5 {[%clk 0:02:53]}  d6 {[%clk 0:03:01]} 6. N1c3 {[%clk 0:02:52]}  a6 {[%clk 0:03:01]} 7. Na3 {[%clk 0:02:53]}  b5 {[%clk 0:03:02]} 8. Nd5 {[%clk 0:02:53]}  Nce7 {[%clk 0:03:02]} 9. c4 {[%clk 0:02:47]}  Nxd5 {[%clk 0:02:59]} 10. Qxd5 {[%clk 0:02:43]}  Be6 {[%clk 0:02:59]} 11. Qd2 {[%clk 0:02:37]}  Nf6 {[%clk 0:02:58]} 12. cxb5 {[%clk 0:02:30]}  Nxe4 {[%clk 0:02:55]} 13. Qe3 {[%clk 0:02:22]}  d5 {[%clk 0:02:51]} 14. bxa6 {[%clk 0:02:20]}  Bb4+ {[%clk 0:02:51]} 15. Kd1 {[%clk 0:02:14]}  Bc5 {[%clk 0:02:50]} 16. Bb5+ {[%clk 0:02:12]}  Kf8 {[%clk 0:02:50]} 17. Qe1 {[%clk 0:02:00]}  Nxf2+ {[%clk 0:02:46]} 18. Kc2 {[%clk 0:01:54]}  Bf5+ {[%clk 0:02:44]} 19. Kb3 {[%clk 0:01:54]}  Nxh1 {[%clk 0:02:30]} 20. Qxh1 {[%clk 0:01:52]}  Qa5 {[%clk 0:02:24]} 0-1


[Site "https://www.chess.com"]

[Event "Titled Tuesday Blitz March 14 Late 2023"]
[White "Thomforde-Toates, Noah"]
[Black "Grycel, Kamil"]
[WhiteFideId "30951992"]
[BlackFideId "1115499"]
[WhiteElo "2624"]
[BlackElo "2476"]
[Result "1-0"]
[Round "06"]
[TimeControl "180+2"]
[Date "2023.03.14"]
[WhiteClock "0:01:35"]
[BlackClock "0:00:22"]

1. c4 {[%clk 0:03:00]}  b6 {[%clk 0:02:57]} 2. Nf3 {[%clk 0:02:59]}  Bb7 {[%clk 0:02:57]} 3. e3 {[%clk 0:03:00]}  g6 {[%clk 0:02:54]} 4. Nc3 {[%clk 0:02:58]}  Bg7 {[%clk 0:02:54]} 5. Qc2 {[%clk 0:02:59]}  c5 {[%clk 0:02:49]} 6. Be2 {[%clk 0:02:58]}  f5 {[%clk 0:02:41]} 7. b3 {[%clk 0:02:50]}  Nf6 {[%clk 0:02:40]} 8. Bb2 {[%clk 0:02:50]}  Nc6 {[%clk 0:02:38]} 9. d3 {[%clk 0:02:50]}  e6 {[%clk 0:02:33]} 10. a3 {[%clk 0:02:49]}  O-O {[%clk 0:02:27]} 11. Rd1 {[%clk 0:02:48]}  Qe7 {[%clk 0:02:24]} 12. O-O {[%clk 0:02:47]}  Rac8 {[%clk 0:01:38]} 13. Qb1 {[%clk 0:02:41]}  d6 {[%clk 0:01:37]} 14. Qa1 {[%clk 0:02:41]}  e5 {[%clk 0:01:36]} 15. Rfe1 {[%clk 0:02:39]}  h6 {[%clk 0:01:29]} 16. d4 {[%clk 0:02:26]}  cxd4 {[%clk 0:01:26]} 17. exd4 {[%clk 0:02:25]}  e4 {[%clk 0:01:26]} 18. Nh4 {[%clk 0:02:16]}  Kh7 {[%clk 0:01:19]} 19. d5 {[%clk 0:02:14]}  Ne5 {[%clk 0:01:17]} 20. Nb5 {[%clk 0:02:12]}  a6 {[%clk 0:00:48]} 21. Nxd6 {[%clk 0:02:03]}  Qxd6 {[%clk 0:00:42]} 22. Bxe5 {[%clk 0:02:02]}  Qd8 {[%clk 0:00:39]} 23. g3 {[%clk 0:02:00]}  b5 {[%clk 0:00:37]} 24. Ng2 {[%clk 0:01:55]}  bxc4 {[%clk 0:00:34]} 25. bxc4 {[%clk 0:01:56]}  g5 {[%clk 0:00:32]} 26. Ne3 {[%clk 0:01:55]}  f4 {[%clk 0:00:31]} 27. Nf5 {[%clk 0:01:54]}  Bh8 {[%clk 0:00:31]} 28. Bf1 {[%clk 0:01:43]}  Qd7 {[%clk 0:00:29]} 29. Nd6 {[%clk 0:01:39]}  Rb8 {[%clk 0:00:24]} 30. Nxe4 {[%clk 0:01:36]}  Nxe4 {[%clk 0:00:23]} 31. Rxe4 {[%clk 0:01:35]}  Bxe5 {[%clk 0:00:22]} 32. Rxe5 {[%clk 0:01:36]}  fxg3 {[%clk 0:00:22]} 33. Bd3+ {[%clk 0:01:35]} 1-0


[Site "https://www.chess.com"]

[Event "Titled Tuesday Blitz March 14 Late 2023"]
[White "Sreyas Payyappat"]
[Black "Filgueira, Hernan"]
[WhiteFideId "46674969"]
[BlackFideId "101770"]
[WhiteElo "2083"]
[BlackElo "2363"]
[Result "0-1"]
[Round "06"]
[TimeControl "180+2"]
[Date "2023.03.14"]
[WhiteClock "0:00:43"]
[BlackClock "0:01:11"]

1. e4 {[%clk 0:03:00]}  d6 {[%clk 0:02:58]} 2. d4 {[%clk 0:03:00]}  Nf6 {[%clk 0:02:58]} 3. Nc3 {[%clk 0:03:00]}  Nbd7 {[%clk 0:02:58]} 4. Nf3 {[%clk 0:02:59]}  e5 {[%clk 0:02:57]} 5. dxe5 {[%clk 0:03:00]}  dxe5 {[%clk 0:02:57]} 6. Bg5 {[%clk 0:03:00]}  Be7 {[%clk 0:02:56]} 7. Bc4 {[%clk 0:02:56]}  O-O {[%clk 0:02:55]} 8. O-O {[%clk 0:02:56]}  c6 {[%clk 0:02:55]} 9. Qd2 {[%clk 0:02:52]}  Qc7 {[%clk 0:02:46]} 10. Rad1 {[%clk 0:02:49]}  b5 {[%clk 0:02:42]} 11. Bb3 {[%clk 0:02:26]}  Nc5 {[%clk 0:02:36]} 12. Qe3 {[%clk 0:02:20]}  Ng4 {[%clk 0:02:14]} 13. Qe2 {[%clk 0:01:49]}  Bxg5 {[%clk 0:02:06]} 14. Nxg5 {[%clk 0:01:50]}  Nf6 {[%clk 0:02:05]} 15. f4 {[%clk 0:01:41]}  Bg4 {[%clk 0:02:04]} 16. Qf2 {[%clk 0:01:21]}  Nxb3 {[%clk 0:02:04]} 17. axb3 {[%clk 0:01:12]}  Bxd1 {[%clk 0:02:03]} 18. Nxd1 {[%clk 0:01:08]}  exf4 {[%clk 0:01:59]} 19. Nc3 {[%clk 0:01:07]}  h6 {[%clk 0:01:49]} 20. Nh3 {[%clk 0:01:06]}  Ng4 {[%clk 0:01:45]} 21. Qe2 {[%clk 0:01:02]}  Ne5 {[%clk 0:01:37]} 22. Nxf4 {[%clk 0:01:01]}  Rad8 {[%clk 0:01:34]} 23. Qe1 {[%clk 0:00:56]}  Ng6 {[%clk 0:01:24]} 24. Nce2 {[%clk 0:00:52]}  Qb6+ {[%clk 0:01:20]} 25. Kh1 {[%clk 0:00:51]}  Qe3 {[%clk 0:01:20]} 26. Qb4 {[%clk 0:00:43]}  Nxf4 {[%clk 0:01:16]} 27. Nxf4 {[%clk 0:00:43]}  Qxf4 {[%clk 0:01:11]} 0-1


[Site "https://www.chess.com"]

[Event "Titled Tuesday Blitz March 14 Late 2023"]
[White "TimGrutter03"]
[Black "Bilych, Olexiy"]
[BlackFideId "14156504"]
[WhiteElo "2510"]
[BlackElo "2320"]
[Result "0-1"]
[Round "06"]
[TimeControl "180+2"]
[Date "2023.03.14"]
[WhiteClock "0:00:20"]
[BlackClock "0:01:33"]

1. e4 {[%clk 0:03:00]}  c5 {[%clk 0:02:57]} 2. Nf3 {[%clk 0:03:00]}  d6 {[%clk 0:02:57]} 3. d4 {[%clk 0:02:59]}  cxd4 {[%clk 0:02:57]} 4. Nxd4 {[%clk 0:03:00]}  Nf6 {[%clk 0:02:58]} 5. Nc3 {[%clk 0:02:59]}  a6 {[%clk 0:02:59]} 6. h4 {[%clk 0:02:59]}  e5 {[%clk 0:02:57]} 7. Nb3 {[%clk 0:03:00]}  Be6 {[%clk 0:02:55]} 8. f4 {[%clk 0:02:59]}  g6 {[%clk 0:02:51]} 9. fxe5 {[%clk 0:02:53]}  dxe5 {[%clk 0:02:50]} 10. Qxd8+ {[%clk 0:02:53]}  Kxd8 {[%clk 0:02:51]} 11. Bg5 {[%clk 0:02:54]}  Nd7 {[%clk 0:02:49]} 12. O-O-O {[%clk 0:02:52]}  Kc7 {[%clk 0:02:48]} 13. Nd5+ {[%clk 0:02:32]}  Bxd5 {[%clk 0:02:45]} 14. exd5 {[%clk 0:02:33]}  Ne4 {[%clk 0:02:41]} 15. Be3 {[%clk 0:02:31]}  Nec5 {[%clk 0:02:38]} 16. Be2 {[%clk 0:02:21]}  Bd6 {[%clk 0:02:38]} 17. g4 {[%clk 0:02:17]}  f5 {[%clk 0:02:36]} 18. gxf5 {[%clk 0:02:04]}  gxf5 {[%clk 0:02:37]} 19. Bd3 {[%clk 0:02:02]}  e4 {[%clk 0:02:34]} 20. Be2 {[%clk 0:01:58]}  Nxb3+ {[%clk 0:02:29]} 21. axb3 {[%clk 0:01:55]}  Rhg8 {[%clk 0:02:29]} 22. Rdf1 {[%clk 0:01:51]}  Raf8 {[%clk 0:02:28]} 23. Bf4 {[%clk 0:01:50]}  Bxf4+ {[%clk 0:02:28]} 24. Rxf4 {[%clk 0:01:51]}  Kd6 {[%clk 0:02:27]} 25. Rhf1 {[%clk 0:01:48]}  Ke5 {[%clk 0:02:25]} 26. b4 {[%clk 0:01:21]}  b5 {[%clk 0:02:18]} 27. c4 {[%clk 0:01:16]}  bxc4 {[%clk 0:02:16]} 28. Bxc4 {[%clk 0:01:17]}  Rg2 {[%clk 0:02:07]} 29. Bxa6 {[%clk 0:01:06]}  Nb6 {[%clk 0:01:59]} 30. d6 {[%clk 0:01:01]}  Nd5 {[%clk 0:01:57]} 31. R4f2 {[%clk 0:00:52]}  Rxf2 {[%clk 0:01:57]} 32. Rxf2 {[%clk 0:00:53]}  Kxd6 {[%clk 0:01:57]} 33. Bb7 {[%clk 0:00:47]}  e3 {[%clk 0:01:46]} 34. Rf3 {[%clk 0:00:46]}  f4 {[%clk 0:01:47]} 35. b5 {[%clk 0:00:42]}  Ke5 {[%clk 0:01:46]} 36. Kd1 {[%clk 0:00:38]}  Rd8 {[%clk 0:01:39]} 37. Ke2 {[%clk 0:00:32]}  Nb4 {[%clk 0:01:36]} 38. b6 {[%clk 0:00:26]}  Nc2 {[%clk 0:01:33]} 39. Ba6 {[%clk 0:00:20]}  Nd4+ {[%clk 0:01:33]} 0-1


[Site "https://www.chess.com"]

[Event "Titled Tuesday Blitz March 14 Late 2023"]
[White "Papasimakopoulos, Alexandros"]
[Black "Sanchez Alvares, Kelvin Antonio"]
[WhiteFideId "4244125"]
[BlackFideId "3906680"]
[WhiteElo "2359"]
[BlackElo "2217"]
[Result "1/2-1/2"]
[Round "06"]
[TimeControl "180+2"]
[Date "2023.03.14"]
[WhiteClock "0:00:18"]
[BlackClock "0:00:24"]

1. d4 {[%clk 0:03:00]}  d5 {[%clk 0:02:46]} 2. c4 {[%clk 0:02:58]}  c6 {[%clk 0:02:46]} 3. cxd5 {[%clk 0:02:58]}  cxd5 {[%clk 0:02:46]} 4. Bf4 {[%clk 0:02:58]}  Nc6 {[%clk 0:02:39]} 5. e3 {[%clk 0:02:54]}  Nf6 {[%clk 0:02:38]} 6. Nc3 {[%clk 0:02:55]}  Bf5 {[%clk 0:02:38]} 7. Qb3 {[%clk 0:02:53]}  Na5 {[%clk 0:02:37]} 8. Qa4+ {[%clk 0:02:53]}  Bd7 {[%clk 0:02:37]} 9. Qc2 {[%clk 0:02:54]}  Rc8 {[%clk 0:02:37]} 10. Nf3 {[%clk 0:02:54]}  e6 {[%clk 0:02:37]} 11. Bd3 {[%clk 0:02:51]}  Bb4 {[%clk 0:02:36]} 12. O-O {[%clk 0:02:51]}  O-O {[%clk 0:02:36]} 13. Ne5 {[%clk 0:02:49]}  Be8 {[%clk 0:02:33]} 14. Bg5 {[%clk 0:02:44]}  h6 {[%clk 0:02:33]} 15. Bh4 {[%clk 0:02:45]}  Nc6 {[%clk 0:02:28]} 16. Rfc1 {[%clk 0:02:32]}  Bxc3 {[%clk 0:02:20]} 17. bxc3 {[%clk 0:02:32]}  Nb4 {[%clk 0:02:20]} 18. Bh7+ {[%clk 0:02:27]}  Nxh7 {[%clk 0:02:07]} 19. Qxh7+ {[%clk 0:02:23]}  Kxh7 {[%clk 0:02:06]} 20. Bxd8 {[%clk 0:02:23]}  Nc6 {[%clk 0:01:57]} 21. Nxc6 {[%clk 0:02:10]}  Bxc6 {[%clk 0:01:54]} 22. Be7 {[%clk 0:02:09]}  Rfe8 {[%clk 0:01:54]} 23. Bb4 {[%clk 0:02:10]}  Ba4 {[%clk 0:01:53]} 24. Kf1 {[%clk 0:02:05]}  Rc4 {[%clk 0:01:52]} 25. Ke2 {[%clk 0:02:04]}  Rec8 {[%clk 0:01:52]} 26. Kd2 {[%clk 0:02:05]}  b6 {[%clk 0:01:51]} 27. f3 {[%clk 0:02:03]}  f6 {[%clk 0:01:50]} 28. Rab1 {[%clk 0:02:00]}  Kg6 {[%clk 0:01:49]} 29. Bd6 {[%clk 0:01:59]}  Kf7 {[%clk 0:01:49]} 30. h4 {[%clk 0:01:57]}  h5 {[%clk 0:01:47]} 31. Bb4 {[%clk 0:01:51]}  Ke8 {[%clk 0:01:40]} 32. Ba3 {[%clk 0:01:50]}  Kd7 {[%clk 0:01:31]} 33. Bb2 {[%clk 0:01:48]}  Rg8 {[%clk 0:01:27]} 34. Rh1 {[%clk 0:01:44]}  Ke8 {[%clk 0:01:16]} 35. g4 {[%clk 0:01:43]}  Kf7 {[%clk 0:01:14]} 36. Rbg1 {[%clk 0:01:33]}  Rh8 {[%clk 0:01:13]} 37. Rg3 {[%clk 0:01:17]}  hxg4 {[%clk 0:01:06]} 38. fxg4 {[%clk 0:01:15]}  g6 {[%clk 0:01:01]} 39. h5 {[%clk 0:01:14]}  gxh5 {[%clk 0:01:00]} 40. gxh5 {[%clk 0:01:14]}  Rcc8 {[%clk 0:00:59]} 41. Rhg1 {[%clk 0:01:00]}  Rcg8 {[%clk 0:00:59]} 42. Rxg8 {[%clk 0:00:30]}  Rxg8 {[%clk 0:00:59]} 43. Rxg8 {[%clk 0:00:27]}  Kxg8 {[%clk 0:00:59]} 44. Ba3 {[%clk 0:00:27]}  Be8 {[%clk 0:00:52]} 45. h6 {[%clk 0:00:26]}  Kh7 {[%clk 0:00:50]} 46. Bf8 {[%clk 0:00:25]}  Kg6 {[%clk 0:00:40]} 47. Bg7 {[%clk 0:00:25]}  Ba4 {[%clk 0:00:35]} 48. Ke2 {[%clk 0:00:25]}  Bc2 {[%clk 0:00:33]} 49. Kf3 {[%clk 0:00:24]}  Be4+ {[%clk 0:00:32]} 50. Kf4 {[%clk 0:00:24]}  Kf7 {[%clk 0:00:30]} 51. a3 {[%clk 0:00:21]}  a6 {[%clk 0:00:29]} 52. Kg3 {[%clk 0:00:20]}  b5 {[%clk 0:00:28]} 53. Kf2 {[%clk 0:00:20]}  a5 {[%clk 0:00:27]} 54. Ke2 {[%clk 0:00:20]}  Kg6 {[%clk 0:00:24]} 55. Kd2 {[%clk 0:00:20]}  a4 {[%clk 0:00:24]} 56. Ke2 {[%clk 0:00:20]}  Kf7 {[%clk 0:00:24]} 57. Kf2 {[%clk 0:00:20]}  Bh7 {[%clk 0:00:23]} 58. Kg3 {[%clk 0:00:20]}  Be4 {[%clk 0:00:24]} 59. Kg4 {[%clk 0:00:19]}  Bf5+ {[%clk 0:00:24]} 60. Kh5 {[%clk 0:00:19]}  Bg6+ {[%clk 0:00:24]} 61. Kh4 {[%clk 0:00:20]}  Bf5 {[%clk 0:00:24]} 62. Kg3 {[%clk 0:00:18]}  Be4 {[%clk 0:00:24]} 63. Kf4 {[%clk 0:00:18]}  Bd3 {[%clk 0:00:24]} 64. Kg3 {[%clk 0:00:18]}  Be4 {[%clk 0:00:24]} 1/2-1/2


[Site "https://www.chess.com"]

[Event "Titled Tuesday Blitz March 14 Late 2023"]
[White "Manukian, Artak"]
[Black "Weetik, Vjacheslav"]
[WhiteFideId "13301373"]
[BlackFideId "4153472"]
[WhiteElo "2130"]
[BlackElo "2469"]
[Result "1-0"]
[Round "06"]
[TimeControl "180+2"]
[Date "2023.03.14"]
[WhiteClock "0:01:30"]
[BlackClock "0:00:02"]

1. e4 {[%clk 0:03:00]}  c6 {[%clk 0:02:59]} 2. d4 {[%clk 0:03:01]}  d5 {[%clk 0:02:59]} 3. e5 {[%clk 0:03:01]}  Bf5 {[%clk 0:02:59]} 4. c4 {[%clk 0:03:02]}  e6 {[%clk 0:02:59]} 5. Nc3 {[%clk 0:03:02]}  Nd7 {[%clk 0:02:56]} 6. Nf3 {[%clk 0:03:02]}  Ne7 {[%clk 0:02:53]} 7. Nh4 {[%clk 0:03:01]}  Bg6 {[%clk 0:02:41]} 8. Bg5 {[%clk 0:03:00]}  Qb6 {[%clk 0:02:14]} 9. Qd2 {[%clk 0:03:00]}  Nf5 {[%clk 0:02:04]} 10. Nxf5 {[%clk 0:02:56]}  Bxf5 {[%clk 0:02:02]} 11. c5 {[%clk 0:02:56]}  Qc7 {[%clk 0:01:57]} 12. Bd3 {[%clk 0:02:53]}  Bxd3 {[%clk 0:01:36]} 13. Qxd3 {[%clk 0:02:54]}  b6 {[%clk 0:01:36]} 14. cxb6 {[%clk 0:02:53]}  axb6 {[%clk 0:01:36]} 15. O-O {[%clk 0:02:53]}  Bb4 {[%clk 0:01:11]} 16. Ne2 {[%clk 0:02:46]}  h6 {[%clk 0:00:50]} 17. Bh4 {[%clk 0:02:43]}  c5 {[%clk 0:00:36]} 18. a3 {[%clk 0:02:36]}  c4 {[%clk 0:00:35]} 19. Qg3 {[%clk 0:02:35]}  Bf8 {[%clk 0:00:28]} 20. Qg4 {[%clk 0:02:31]}  g5 {[%clk 0:00:25]} 21. Bg3 {[%clk 0:02:28]}  Be7 {[%clk 0:00:25]} 22. f4 {[%clk 0:02:25]}  h5 {[%clk 0:00:25]} 23. Qf3 {[%clk 0:02:25]}  g4 {[%clk 0:00:22]} 24. Qe3 {[%clk 0:02:22]}  h4 {[%clk 0:00:21]} 25. Be1 {[%clk 0:02:21]}  f5 {[%clk 0:00:17]} 26. exf6 {[%clk 0:02:20]}  Nxf6 {[%clk 0:00:18]} 27. Qxe6 {[%clk 0:02:20]}  Qd7 {[%clk 0:00:14]} 28. f5 {[%clk 0:02:14]}  Qxe6 {[%clk 0:00:13]} 29. fxe6 {[%clk 0:02:15]}  Ne4 {[%clk 0:00:14]} 30. Nc3 {[%clk 0:02:14]}  O-O-O {[%clk 0:00:05]} 31. Rf7 {[%clk 0:02:05]}  Rhe8 {[%clk 0:00:04]} 32. Rxe7 {[%clk 0:02:01]}  Rxe7 {[%clk 0:00:04]} 33. Bxh4 {[%clk 0:02:01]}  Rxe6 {[%clk 0:00:05]} 34. Bxd8 {[%clk 0:02:01]}  Nxc3 {[%clk 0:00:05]} 35. bxc3 {[%clk 0:02:00]}  Kxd8 {[%clk 0:00:05]} 36. Kf2 {[%clk 0:01:59]}  Kc7 {[%clk 0:00:03]} 37. Re1 {[%clk 0:01:56]}  Rh6 {[%clk 0:00:02]} 38. Kg3 {[%clk 0:01:56]}  Kc6 {[%clk 0:00:02]} 39. a4 {[%clk 0:01:49]}  Kb7 {[%clk 0:00:02]} 40. Re5 {[%clk 0:01:49]}  Rd6 {[%clk 0:00:01]} 41. Kxg4 {[%clk 0:01:48]}  Ka6 {[%clk 0:00:02]} 42. h4 {[%clk 0:01:48]}  Ka5 {[%clk 0:00:02]} 43. h5 {[%clk 0:01:44]}  Kxa4 {[%clk 0:00:03]} 44. Kf5 {[%clk 0:01:39]}  b5 {[%clk 0:00:03]} 45. g4 {[%clk 0:01:38]}  b4 {[%clk 0:00:03]} 46. cxb4 {[%clk 0:01:38]}  c3 {[%clk 0:00:04]} 47. Re1 {[%clk 0:01:35]}  c2 {[%clk 0:00:03]} 48. g5 {[%clk 0:01:35]}  Kb3 {[%clk 0:00:03]} 49. h6 {[%clk 0:01:35]}  Rd8 {[%clk 0:00:01]} 50. h7 {[%clk 0:01:32]}  Rf8+ {[%clk 0:00:02]} 51. Kg4 {[%clk 0:01:30]}  Kb2 {[%clk 0:00:02]} 52. g6 {[%clk 0:01:29]}  c1=Q {[%clk 0:00:01]} 53. Rxc1 {[%clk 0:01:30]}  Kxc1 {[%clk 0:00:02]} 54. g7 {[%clk 0:01:30]}  Rd8 {[%clk 0:00:02]} 55. g8=Q {[%clk 0:01:30]} 1-0


[Site "https://www.chess.com"]